bitfinex-derivatives/quotes_SOLF0:USTF0_20260218
["timestamp","ask_amount","ask_price","bid_price","bid_amount"]
[1771376857728,0.07999942,84.553,84.521,10.6539]
[1771376858025,0.07999942,84.553,84.53,2.0117886]
[1771376862023,0.07999942,84.553,84.522,9.86631918]
[1771376862933,9.83936319,84.553,84.52,2.0117886]
[1771376863123,9.83936319,84.553,84.51,11.87810778]
[1771376863828,20.40966377,84.552,84.51,11.87810778]
[1771376864127,9.75936377,84.551,84.51,11.87810778]
[1771376865328,9.75936377,84.551,84.51,9.86631918]
[1771376866126,10.6507,84.548,84.51,9.86631918]
[1771376867628,20.30448808,84.548,84.51,9.86631918]
[1771376867826,10.6523,84.536,84.501,10.5174088]
[1771376868329,10.6523,84.536,84.51,12.5291974]
[1771376868830,0.08936378,84.527,84.499,10.5174088]
[1771376869034,0.08936378,84.527,84.5,2.0117886]
[1771376870636,0.08936378,84.527,84.499,10.5174088]
[1771376870837,0.08936378,84.527,84.5,2.0117886]
[1771376871138,0.08936378,84.527,84.45,11.82]
[1771376871139,9.74315186,84.527,84.488,10.5174088]
[1771376871637,9.65378808,84.527,84.488,10.5174088]
[1771376872036,0.08862226,84.516,84.488,10.5174088]
[1771376872642,0.08862226,84.516,84.49,2.01664186]
[1771376873234,0.08862226,84.516,84.49,12.53405066]
[1771376873538,0.08862226,84.516,84.49,2.01664186]
[1771376873734,10.39415699,84.516,84.48,2.01664186]
[1771376874135,10.6561,84.505,84.47,2.01664186]
[1771376874331,10.6561,84.505,84.468,10.60531993]
[1771376874536,10.30553473,84.504,84.46,2.01664186]
[1771376874738,10.30553473,84.504,84.46,12.62196179]
[1771376875241,0.07908465,84.49,84.46,12.62196179]
[1771376877840,0.07908465,84.49,84.46,10.60531993]
[1771376879427,0.07908465,84.49,84.46,12.62196179]
[1771376882145,10.6583,84.488,84.46,10.60531993]
[1771376883346,0.07908465,84.49,84.46,10.60531993]
[1771376885442,10.6562,84.504,84.46,12.62196179]
[1771376885847,10.6562,84.504,84.468,10.60531993]
[1771376886444,10.657,84.498,84.468,10.60531993]
[1771376887941,10.657,84.498,84.467,0.07754746]
[1771376887942,10.30553473,84.532,84.491,10.60531993]
[1771376888137,10.30553473,84.532,84.5,2.01664186]
[1771376888347,10.6515,84.542,84.5,12.62196179]
[1771376888649,10.6515,84.542,84.51,12.62196179]
[1771376889044,10.30553473,84.544,84.51,6.179e-05]
[1771376889246,10.30553473,84.534,84.49,2.01664186]
[1771376889447,10.3902821,84.534,84.49,2.01664186]
[1771376889751,0.08474737,84.534,84.5,2.01664186]
[1771376890255,0.08474737,84.534,84.481,74.36]
[1771376890256,10.30553473,84.559,84.52,2.01664186]
[1771376890441,2.01664186,84.55,84.5,2.01664186]
[1771376890641,10.30553473,84.549,84.5,2.01664186]
[1771376890838,10.30553473,84.549,84.51,2.01664186]
[1771376891551,10.30553473,84.549,84.503,7.07622449]
[1771376891851,10.30553473,84.549,84.521,0.08281792]
[1771376892747,10.6515,84.542,84.521,0.08281792]
[1771376893049,10.6515,84.542,84.521,0.01896454]
[1771376893249,20.95703473,84.542,84.521,0.01896454]
[1771376894458,20.95773473,84.536,84.521,0.01896454]
[1771376899854,10.36773918,84.537,84.491,7.58746413]
[1771376900055,10.36773918,84.529,84.475,7.96886942]
[1771376900358,2.01664186,84.52,84.475,7.96886942]
[1771376900561,8.77735062,84.554,84.447,74.38]
[1771376900562,10.36773918,84.526,84.481,7.96886942]
[1771376901156,0.07965991,84.512,84.481,7.96886942]
[1771376901350,10.36773918,84.526,84.491,7.97739397]
[1771376902755,10.6543,84.52,84.491,7.97739397]
[1771376902958,10.6543,84.52,84.5,0.08630107]
[1771376903459,10.6543,84.52,84.47,7.39956842]
[1771376903460,10.6566,84.501,84.47,7.39956842]
[1771376903655,74.38,84.54,84.446,7.48586949]
[1771376903656,10.36773918,84.499,84.446,7.48586949]
[1771376903852,10.36773918,84.499,84.451,7.48586949]
[1771376904453,10.36773918,84.469,84.416,7.49325946]
[1771376904663,2.01664186,84.46,84.416,7.49325946]
[1771376905055,2.01664186,84.45,84.4,9.51053465]
[1771376905359,12.38438104,84.45,84.401,7.49389279]
[1771376905859,0.08761385,84.433,84.391,7.7987852]
[1771376906066,2.01664186,84.42,84.377,7.7987852]
[1771376906261,12.38438104,84.41,84.361,7.7987852]
[1771376906466,2.01664186,84.42,84.371,7.7987852]
[1771376906656,10.36773918,84.426,84.371,7.7987852]
[1771376906966,10.36773918,84.426,84.373,7.72103603]
[1771376907263,10.36773918,84.419,84.373,7.72103603]
[1771376907465,10.36773918,84.416,84.373,7.72103603]
[1771376907660,12.38438104,84.41,84.36,2.01664186]
[1771376907854,10.36773918,84.399,84.359,18.15040691]
[1771376908055,2.01664186,84.41,84.361,7.87746725]
[1771376908255,2.01664186,84.41,84.377,0.08533681]
[1771376908464,10.36773918,84.409,84.377,0.08533681]
[1771376908658,10.36773918,84.399,84.359,18.15040691]
[1771376908861,10.6708,84.389,84.359,18.15040691]
[1771376909058,10.36773918,84.399,84.359,18.15040691]
[1771376910164,0.09115547,84.387,84.359,18.15040691]
[1771376912264,10.45889465,84.387,84.359,0.33440691]
[1771376913262,10.45889465,84.387,84.332,8.09064196]
[1771376913762,2.01664186,84.38,84.332,8.09064196]
[1771376913962,21.04003918,84.377,84.332,8.09064196]
[1771376914164,0.08904397,84.368,84.332,8.09064196]
[1771376914564,0.08904397,84.368,84.33,10.38030271]
[1771376914761,165.8869,84.442,84.261,298.0]
[1771376914762,10.36773918,84.399,84.35,2.01664186]
[1771376915673,10.36773918,84.417,84.361,7.58319712]
[1771376915976,10.36773918,84.417,84.371,7.58319712]
[1771376916673,10.36773918,84.417,84.386,0.08077518]
[1771376917567,2.01664186,84.43,84.386,0.08077518]
[1771376918669,2.01664186,84.43,84.386,7.45853319]
[1771376918975,2.01664186,84.42,84.386,0.08077518]
[1771376919476,2.01664186,84.41,84.372,7.37775801]
[1771376919673,10.36773918,84.42,84.36,2.01664186]
[1771376919873,2.01664186,84.41,84.395,0.08108016]
[1771376920377,2.01664186,84.41,84.361,7.30359814]
[1771376920777,2.01664186,84.41,84.302,35.53]
[1771376920778,2.01664186,84.38,84.342,7.39180565]
[1771376921868,0.07925086,84.369,84.342,7.39180565]
[1771376924874,10.5492741,84.366,84.287,7.84068122]
[1771376925079,16.57329743,84.35,84.287,7.84068122]
[1771376925778,0.07950057,84.327,84.297,7.81408195]
[1771376926078,10.5492741,84.365,84.297,7.81408195]
[1771376926679,10.6747,84.358,84.301,7.74094452]
[1771376927369,10.6747,84.358,84.321,0.07572716]
[1771376928982,21.2239741,84.358,84.321,0.07572716]
[1771376929279,6.02402333,84.35,84.285,7.83879407]
[1771376929479,10.5492741,84.347,84.285,7.83879407]
[1771376929678,0.07611381,84.348,84.285,7.83879407]
[1771376929984,10.6743,84.362,84.304,7.87043335]
[1771376930772,0.07555905,84.341,84.304,7.87043335]
[1771376933274,0.07555905,84.341,84.305,10.6813]
[1771376933476,0.07555905,84.341,84.306,7.97350519]
[1771376934379,10.82437911,84.365,84.306,7.97350519]
[1771376934566,10.82437911,84.379,84.316,7.88813387]
[1771376934770,10.6726,84.375,84.325,7.88813387]
[1771376934982,6.02875909,84.38,84.325,7.88813387]
[1771376935778,6.02875909,84.38,84.344,0.07807329]
[1771376936174,10.82437911,84.377,84.344,0.07807329]
[1771376936380,10.82437911,84.359,84.289,7.74727954]
[1771376936981,10.82437911,84.356,84.299,7.75338453]
[1771376937483,10.82437911,84.356,84.302,7.75338453]
[1771376937686,0.07739148,84.336,84.302,7.75338453]
[1771376939779,0.07739148,84.336,84.304,7.9479055]
[1771376940281,10.82437911,84.356,84.304,7.9479055]
[1771376940487,10.82437911,84.352,84.304,7.9479055]
[1771376941084,10.6748,84.357,84.32,0.0861993]
[1771376941582,10.6755,84.352,84.32,0.0861993]
[1771376941979,2.02523622,84.35,84.32,0.0861993]
[1771376945779,35.53,84.406,84.32,0.0861993]
[1771376945780,2.02523622,84.34,84.32,0.0861993]
[1771376946180,21.50027911,84.349,84.32,0.0861993]
[1771376946380,21.50027911,84.349,84.29,2.02523622]
[1771376946381,21.50027911,84.349,84.302,7.91797802]
[1771376946786,21.50027911,84.349,84.326,0.08482476]
[1771376948484,0.08939272,84.346,84.307,10.681]
[1771376948685,0.08939272,84.346,84.302,7.91797802]
[1771376949085,2.02523622,84.34,84.302,7.91797802]
[1771376949484,2.02523622,84.34,84.304,10.6815]
[1771376950085,0.08939272,84.346,84.274,74.42]
[1771376950086,0.08939272,84.346,84.311,10.6805]
[1771376950285,0.08939272,84.346,84.305,8.07162596]
[1771376950688,10.82437911,84.348,84.305,8.07162596]
[1771376951086,0.09025518,84.334,84.305,8.07162596]
[1771376951593,0.09025518,84.334,84.306,10.6811]
[1771376952395,0.09025518,84.334,84.305,8.07162596]
[1771376959608,10.31106458,84.365,84.318,7.7043863]
[1771376959911,2.02523622,84.35,84.318,7.7043863]
[1771376960208,2.02523622,84.35,84.305,7.7043863]
[1771376960805,2.02523622,84.35,84.311,7.70842342]
[1771376961013,2.02523622,84.35,84.319,0.07991331]
[1771376963514,10.61894581,84.402,84.319,7.57221904]
[1771376963515,10.31106458,84.372,84.319,7.57221904]
[1771376963707,2.02523622,84.35,84.319,7.57221904]
[1771376964107,2.02523622,84.35,84.319,7.49230573]
[1771376964410,2.02523622,84.35,84.326,0.08911273]
[1771376965814,12.3363008,84.36,84.326,0.08911273]
[1771376972412,10.31106458,84.36,84.326,0.08911273]
[1771376972617,12.3363008,84.36,84.326,0.08911273]
[1771376975322,12.3363008,84.36,84.287,74.44]
[1771376975323,10.31106458,84.339,84.281,7.50923332]
[1771376975713,10.31106458,84.339,84.29,2.02523622]
[1771376976015,10.31106458,84.339,84.291,7.6016771]
[1771376976717,0.08626474,84.323,84.301,7.60520806]
[1771376977721,0.08626474,84.323,84.303,10.6815]
[1771376982118,0.08626474,84.323,84.303,18.30722633]
[1771376982323,10.31106458,84.339,84.306,7.62572633]
[1771376983017,2.02523622,84.34,84.306,7.62572633]
[1771376983723,23.0120008,84.35,84.306,7.62572633]
[1771376983922,23.0120008,84.35,84.309,7.54400302]
[1771376984124,10.31106458,84.35,84.311,7.54400302]
[1771376985026,10.31106458,84.35,84.322,0.09016809]
[1771376987028,12.3363008,84.35,84.322,0.09016809]
[1771376987520,10.31106458,84.35,84.322,0.09016809]
[1771376987724,2.02523622,84.36,84.322,0.09016809]
[1771376988121,2.02523622,84.36,84.322,7.66266434]
[1771376988322,2.02523622,84.37,84.322,7.66266434]
[1771376988829,2.02523622,84.37,84.33,18.2538347]
[1771376989228,2.02523622,84.37,84.331,7.5756347]
[1771376989432,12.30592042,84.37,84.331,7.5756347]
[1771376989729,12.30592042,84.37,84.342,0.08123595]
[1771376994033,12.30475338,84.37,84.342,0.08123595]
[1771376994531,10.67877938,84.365,84.342,0.08123595]
[1771376996630,10.67877938,84.378,84.342,0.08123595]
[1771376996834,10.67877938,84.369,84.342,0.08123595]
[1771376997130,10.67877938,84.369,84.323,7.53229209]
[1771376997526,10.67877938,84.369,84.347,0.08618941]
[1771376998122,10.67877938,84.359,84.31,2.02406918]
[1771376998329,10.67877938,84.359,84.311,7.44017845]
[1771376999626,0.07971419,84.343,84.311,7.44017845]
[1771376999831,0.07971419,84.343,84.318,10.6796]
[1771377000530,0.07971419,84.343,84.311,7.44017845]
[1771377000923,10.75849357,84.343,84.311,7.44017845]
[1771377001127,10.75849357,84.343,84.3,2.02406918]
[1771377001530,10.67877938,84.339,84.3,2.02406918]
[1771377001731,10.67877938,84.339,84.299,7.56851236]
[1771377002125,10.67877938,84.327,84.284,7.7666893]
[1771377003032,0.08953651,84.314,84.284,7.7666893]
[1771377003431,0.08953651,84.314,84.285,18.45552205]
[1771377003628,0.08953651,84.314,84.271,7.48134966]
[1771377003629,10.67877938,84.313,84.271,7.48134966]
[1771377003829,10.67877938,84.309,84.271,7.48134966]
[1771377004030,10.67877938,84.289,84.245,7.48134966]
[1771377004935,0.07581304,84.275,84.245,7.48134966]
[1771377005327,0.07581304,84.275,84.231,7.48388911]
[1771377005734,10.75459242,84.275,84.231,7.48388911]
[1771377007346,2.02406918,84.26,84.223,86.54]
[1771377007544,10.67877938,84.269,84.221,7.62574384]
[1771377008041,10.67877938,84.269,84.23,2.02406918]
[1771377008242,0.08357807,84.253,84.23,2.02406918]
[1771377008441,0.08357807,84.253,84.21,7.62824983]
[1771377008737,0.08357807,84.253,84.222,7.62836587]
[1771377008935,10.67877938,84.271,84.222,7.62836587]
[1771377008936,10.67877938,84.271,84.23,2.02406918]
[1771377009143,2.02406918,84.29,84.241,7.62836587]
[1771377009342,10.67877938,84.289,84.241,7.62836587]
[1771377009644,10.67877938,84.279,84.231,7.64253494]
[1771377009938,10.67877938,84.279,84.24,2.02406918]
[1771377010336,10.67877938,84.279,84.247,0.08534232]
[1771377013344,10.67877938,84.292,84.251,7.50025691]
[1771377014043,10.67877938,84.289,84.241,7.54444961]
[1771377014247,10.67877938,84.289,84.263,0.08500352]
[1771377015239,2.02406918,84.3,84.263,0.08500352]
[1771377015433,10.50164369,84.315,84.271,7.55103226]
[1771377015639,10.50164369,84.315,84.28,2.02406918]
[1771377016146,10.50164369,84.327,84.289,0.08608694]
[1771377016646,12.52571287,84.34,84.29,2.02406918]
[1771377017042,12.52571287,84.34,84.291,7.6064633]
[1771377017237,10.50164369,84.309,84.263,7.6064633]
[1771377017746,10.50164369,84.309,84.27,2.02406918]
[1771377017946,10.50164369,84.309,84.272,10.6855]
[1771377018734,10.50164369,84.309,84.27,2.02406918]
[1771377019047,0.07618239,84.299,84.27,2.02406918]
[1771377019441,0.07618239,84.299,84.263,18.2930633]
[1771377020251,0.07618239,84.299,84.269,10.6859]
[1771377020444,0.07618239,84.299,84.27,2.02406918]
[1771377020947,0.07618239,84.299,84.264,7.90514073]
[1771377021149,0.07618239,84.299,84.27,2.02406918]
[1771377023140,0.07618239,84.299,84.264,7.90514073]
[1771377024454,0.07618239,84.299,84.265,10.6864]
[1771377025052,0.07618239,84.299,84.27,10.00264312]
[1771377025349,0.07618239,84.299,84.271,7.97857394]
[1771377025550,10.50164369,84.319,84.271,7.97857394]
[1771377025951,0.08174886,84.293,84.273,8.02993941]
[1771377026553,10.50164369,84.319,84.273,8.02993941]
[1771377027650,10.50164369,84.319,84.274,10.6852]
[1771377028355,10.50164369,84.319,84.288,0.08530234]
[1771377034269,10.6798,84.318,84.288,0.08530234]
[1771377034468,10.50164369,84.299,84.245,6.95064409]
[1771377034765,10.50164369,84.289,84.245,6.95064409]
[1771377034967,10.50164369,84.279,84.238,10.6897]
[1771377035778,0.08467105,84.267,84.238,10.6897]
[1771377036068,0.08467105,84.267,84.233,6.95245395]
[1771377036069,0.08467105,84.267,84.246,10.6888]
[1771377036268,10.50164369,84.298,84.247,7.0148906]
[1771377036474,10.50164369,84.298,84.251,7.0148906]
[1771377037465,10.50164369,84.298,84.178,195.77119658]
[1771377037466,2.02406918,84.31,84.262,7.01667141]
[1771377037671,12.52571287,84.31,84.266,0.08300844]
[1771377038270,12.52571287,84.3,84.266,0.08300844]
[1771377038868,12.52571287,84.3,84.257,6.91655133]
[1771377039173,12.52571287,84.3,84.275,0.08037524]
[1771377041866,10.50164369,84.289,84.231,6.98217528]
[1771377042070,12.52571287,84.28,84.231,6.98217528]
[1771377042371,74.5,84.312,84.231,6.98217528]
[1771377042372,12.52571287,84.27,84.231,6.98217528]
[1771377043077,10.50164369,84.27,84.231,6.98217528]
[1771377043272,0.08899361,84.259,84.231,6.98217528]
[1771377043673,0.08899361,84.259,84.232,10.6906]
[1771377044376,10.50164369,84.284,84.241,10.6895]
[1771377044976,2.02406918,84.28,84.241,10.6895]
[1771377045879,2.02406918,84.28,84.252,0.08125884]
[1771377046076,12.2650901,84.28,84.252,0.08125884]
[1771377048483,12.2650901,84.28,84.241,10.6895]
[1771377048677,10.24102092,84.273,84.241,10.6895]
[1771377050274,10.24102092,84.273,84.248,10.6885]
[1771377050480,0.08309084,84.274,84.248,10.6885]
[1771377051288,0.08309084,84.274,84.24,10.6895]
[1771377051486,10.32411176,84.274,84.231,6.98217528]
[1771377051985,10.32411176,84.274,84.232,10.6905]
[1771377052678,10.32411176,84.274,84.231,6.98217528]
[1771377052679,10.32411176,84.274,84.239,10.6896]
[1771377053278,0.08309084,84.274,84.244,6.87991679]
[1771377053679,0.08309084,84.274,84.242,10.6892]
[1771377053879,11.00745875,84.285,84.242,10.6892]
[1771377054274,0.08337392,84.266,84.242,10.6892]
[1771377054988,0.08337392,84.266,84.24,2.02406918]
[1771377055377,0.08337392,84.266,84.241,6.92847086]
[1771377056785,0.08337392,84.266,84.241,17.61787086]
[1771377057492,0.08337392,84.266,84.241,10.6894]
[1771377062085,0.08337392,84.266,84.233,10.6904]
[1771377062387,0.08337392,84.266,84.231,7.0717181]
[1771377063686,0.08337392,84.266,84.239,10.6896]
[1771377071789,0.08337392,84.266,84.221,7.08282436]
[1771377071790,11.09083267,84.266,84.221,7.08282436]
[1771377072298,11.00745875,84.266,84.228,10.691]
[1771377072496,11.00745875,84.266,84.221,7.08282436]
[1771377072697,0.07643237,84.252,84.221,7.08282436]
[1771377073792,0.07643237,84.252,84.224,7.19649316]
[1771377077006,12.14048439,84.29,84.241,6.50296696]
[1771377077396,12.14048439,84.28,84.241,6.50296696]
[1771377078194,12.14048439,84.28,84.185,309.86]
[1771377078195,10.11251348,84.269,84.232,6.55099523]
[1771377078408,10.11251348,84.269,84.252,0.08061458]
[1771377078907,0.0867653,84.259,84.232,6.55099523]
[1771377079301,0.0867653,84.259,84.234,10.6903]
[1771377083109,0.0867653,84.259,84.232,6.55099523]
[1771377084014,12.14048439,84.27,84.237,0.09093165]
[1771377084504,12.14048439,84.27,84.225,6.1775416]
[1771377085405,12.14048439,84.27,84.239,0.07970997]
[1771377086710,10.11251348,84.259,84.221,10.6919]
[1771377087501,10.11251348,84.259,84.228,10.691]
[1771377088007,10.11251348,84.259,84.221,6.14562516]
[1771377089109,10.11251348,84.259,84.222,10.6918]
[1771377091706,10.11251348,84.259,84.221,6.14562516]
[1771377092610,10.11251348,84.259,84.224,10.6916]
[1771377093119,10.11251348,84.259,84.211,6.08019763]
[1771377094116,0.08769857,84.243,84.219,10.6922]
[1771377094509,0.08769857,84.243,84.211,6.08019763]
[1771377094911,0.08769857,84.243,84.219,16.91300563]
[1771377096108,0.08769857,84.243,84.219,6.22080563]
[1771377098313,0.08769857,84.243,84.203,6.09867036]
[1771377098314,10.20021205,84.243,84.203,6.09867036]
[1771377098719,10.11251348,84.243,84.203,6.09867036]
[1771377099421,0.08521368,84.231,84.203,6.09867036]
[1771377099722,0.08521368,84.231,84.204,16.8955434]
[1771377099922,10.19772716,84.231,84.193,6.2013434]
[1771377100429,10.11251348,84.231,84.193,6.2013434]
[1771377100918,0.08749198,84.22,84.193,6.2013434]
[1771377101719,10.11251348,84.269,84.211,6.1094101]
[1771377101921,2.02797091,84.26,84.22,2.02797091]
[1771377102717,10.11251348,84.259,84.22,2.02797091]
[1771377102922,10.11251348,84.259,84.213,6.11043047]
[1771377103129,10.11251348,84.259,84.232,0.08334389]
[1771377106325,12.31453946,84.27,84.232,0.08334389]
[1771377108434,10.28656855,84.27,84.232,0.08334389]
[1771377108827,12.31453946,84.27,84.232,0.08334389]
[1771377109527,10.28656855,84.27,84.232,0.08334389]
[1771377109728,10.28656855,84.27,84.233,10.6904]
[1771377111337,10.28656855,84.27,84.239,10.6896]
[1771377112635,10.28656855,84.296,84.26,2.02797091]
[1771377112935,10.28656855,84.309,84.261,5.98616796]
[1771377113526,10.28656855,84.309,84.277,0.07823848]
[1771377115029,9.99710374,84.299,84.254,10.6877]
[1771377116237,9.99710374,84.299,84.26,2.02762674]
[1771377117426,9.99710374,84.299,84.254,16.50687647]
[1771377117630,9.99710374,84.299,84.255,6.36704413]
[1771377118732,9.99710374,84.299,84.254,10.6877]
[1771377118733,9.99710374,84.299,84.264,6.36784318]
[1771377119740,0.07748086,84.29,84.266,6.39465455]
[1771377120238,9.99710374,84.31,84.27,2.11488016]
[1771377120441,165.956,84.407,84.28,2.02762674]
[1771377120442,9.99710374,84.327,84.28,2.02762674]
[1771377120940,12.02473048,84.32,84.273,6.39539222]
[1771377121636,9.99710374,84.32,84.288,0.07681904]
[1771377123340,12.02473048,84.32,84.288,0.07681904]
[1771377124343,9.99710374,84.32,84.288,0.07681904]
[1771377124536,9.99710374,84.334,84.29,8.41792918]
[1771377124736,9.99710374,84.334,84.3,2.02762674]
[1771377125145,9.99710374,84.349,84.302,10.6817]
[1771377125338,9.99710374,84.349,84.31,2.02762674]
[1771377125539,9.99710374,84.349,84.311,6.29526517]
[1771377125744,9.99710374,84.369,84.32,2.02762674]
[1771377126448,9.99710374,84.369,84.286,74.56]
[1771377126449,9.99710374,84.369,84.33,2.02762674]
[1771377126649,9.99710374,84.369,84.336,0.07962397]
[1771377128144,9.99710374,84.389,84.34,2.02762674]
[1771377128343,9.99710374,84.389,84.341,5.65818303]
[1771377128649,2.02762674,84.4,84.351,5.65876421]
[1771377128846,12.02473048,84.4,84.351,5.65876421]
[1771377129049,12.02473048,84.4,84.357,0.07636598]
[1771377129446,9.99710374,84.4,84.36,2.02762674]
[1771377129751,9.99710374,84.414,84.37,2.02762674]
[1771377130646,9.99710374,84.414,84.384,0.08928944]
[1771377131550,9.99710374,84.414,84.345,74.56]
[1771377131551,9.99710374,84.399,84.35,2.02762674]
[1771377131947,9.99710374,84.399,84.351,10.6754]
[1771377132944,0.07659568,84.383,84.351,10.6754]
[1771377136056,0.07659568,84.383,84.346,5.77676558]
[1771377137157,11.0341088,84.379,84.332,5.26461324]
[1771377137653,11.0341088,84.379,84.34,2.02762674]
[1771377138047,0.0817813,84.364,84.34,2.02762674]
[1771377138251,0.0817813,84.364,84.335,10.6775]
[1771377139552,0.0817813,84.364,84.325,10.6788]
[1771377140255,11.0341088,84.367,84.325,10.6788]
[1771377140452,0.09036269,84.353,84.325,10.6788]
[1771377141251,0.09036269,84.353,84.323,10.679]
[1771377142655,0.09036269,84.353,84.33,2.02762674]
[1771377142853,2.02762674,84.38,84.331,5.07855849]
[1771377143257,13.06173554,84.38,84.331,5.07855849]
[1771377143661,13.06173554,84.38,84.331,15.75655849]
[1771377144264,11.0341088,84.38,84.347,0.08929712]
[1771377150570,11.0341088,84.369,84.32,2.02762674]
[1771377151067,11.0341088,84.369,84.325,10.6788]
[1771377152071,0.09014157,84.355,84.325,10.6788]
[1771377152563,0.09014157,84.355,84.321,5.08407507]
[1771377154671,0.09014157,84.355,84.322,10.6791]
[1771377154871,0.09014157,84.355,84.322,15.72647992]
[1771377155674,0.09014157,84.355,84.324,10.6789]
[1771377157375,0.09014157,84.355,84.324,15.73032534]
[1771377157965,2.02762674,84.38,84.336,5.04913485]
[1771377158166,13.06173554,84.38,84.336,5.04913485]
[1771377158372,11.0341088,84.38,84.34,2.02762674]
[1771377158676,11.0341088,84.38,84.346,10.6761]
[1771377158872,11.0341088,84.38,84.302,35.53]
[1771377158873,11.0341088,84.429,84.371,5.04958139]
[1771377159073,11.0341088,84.429,84.39,2.02762674]
[1771377159270,2.02762674,84.46,84.41,2.02762674]
[1771377159473,8.74915934,84.492,84.4,2.02762674]
[1771377159474,11.0341088,84.449,84.4,2.02762674]
[1771377159677,11.0341088,84.449,84.396,5.04958139]
[1771377159875,11.0341088,84.439,84.396,5.04958139]
[1771377160181,11.0341088,84.439,84.414,0.07703384]
[1771377162479,11.0341088,84.439,84.39,2.02762674]
[1771377162781,11.0341088,84.434,84.39,2.02762674]
[1771377163475,11.0341088,84.434,84.391,10.6704]
[1771377163677,11.0341088,84.434,84.4,2.02762674]
[1771377164583,0.0825068,84.435,84.401,4.92215138]
[1771377165576,0.0825068,84.435,84.401,87.04215138]
[1771377165777,11.0341088,84.448,84.401,87.04215138]
[1771377166183,11.0341088,84.448,84.41,0.08618384]
[1771377180785,11.00804698,84.444,84.41,0.08618384]
[1771377181086,0.08342458,84.437,84.388,82.78]
[1771377181282,11.00804698,84.429,84.388,82.78]
[1771377182285,0.07788042,84.417,84.388,82.78]
[1771377182481,11.00804698,84.446,84.4,7.20091804]
[1771377182791,11.00804698,84.446,84.41,2.02028874]
[1771377183987,11.00804698,84.446,84.41,17.87322694]
[1771377184184,11.00804698,84.446,84.42,0.07536574]
[1771377186891,6.66026049,84.446,84.42,2.09565448]
[1771377187187,6.66026049,84.446,84.42,0.07536574]
[1771377187383,10.22579314,84.485,84.42,11.38465461]
[1771377187584,10.22579314,84.492,84.44,2.02028874]
[1771377187781,2.02028874,84.5,84.45,2.02028874]
[1771377188090,2.02028874,84.49,84.44,76.60028874]
[1771377188293,0.08887567,84.483,84.44,76.60028874]
[1771377188686,0.08887567,84.483,84.44,87.26448874]
[1771377188987,11.00804698,84.482,84.44,87.26448874]
[1771377190083,11.00804698,84.482,84.44,95.78448874]
[1771377190486,11.00804698,84.482,84.45,2.02028874]
[1771377192495,11.00804698,84.482,84.45,85.26028874]
[1771377193190,0.08887567,84.483,84.45,85.26028874]
[1771377193894,11.00804698,84.482,84.45,83.24]
[1771377194192,11.00804698,84.479,84.448,83.34]
[1771377195197,0.08527986,84.472,84.448,83.34]
[1771377195591,0.08527986,84.472,84.45,2.02028874]
[1771377198299,0.08527986,84.472,84.46,2.02028874]
[1771377199596,0.08527986,84.472,84.45,2.02028874]
[1771377203902,0.08527986,84.472,84.451,10.6628]
[1771377204207,0.08527986,84.472,84.45,2.02028874]
[1771377205008,0.08527986,84.472,84.45,10.50645859]
[1771377205203,0.08527986,84.472,84.46,2.02028874]
[1771377210309,10.2743983,84.513,84.462,8.21172813]
[1771377210611,10.2743983,84.509,84.462,8.21172813]
[1771377211008,10.2743983,84.507,84.462,8.21172813]
[1771377211708,10.2743983,84.504,84.476,0.08392293]
[1771377214206,10.2743983,84.504,84.48,2.02028874]
[1771377214514,10.2743983,84.516,84.48,2.02028874]
[1771377215109,10.2743983,84.528,84.481,7.96954331]
[1771377215507,10.2743983,84.528,84.49,0.08203078]
[1771377216110,10.6533,84.527,84.49,0.08203078]
[1771377216415,10.2743983,84.526,84.49,2.10231952]
[1771377216913,10.2743983,84.526,84.5,2.02028874]
[1771377217509,10.2743983,84.526,84.49,2.10231952]
[1771377217712,10.2743983,84.526,84.491,10.6577]
[1771377218115,10.2743983,84.526,84.49,2.10231952]
[1771377218810,10.2743983,84.524,84.49,0.08203078]
[1771377219013,10.2743983,84.509,84.462,7.80210491]
[1771377219710,10.6558,84.508,84.462,7.80210491]
[1771377219910,10.2743983,84.507,84.462,7.80210491]
[1771377220311,0.08339397,84.493,84.463,10.6614]
[1771377220513,0.08339397,84.493,84.47,2.02028874]
[1771377221812,0.08339397,84.493,84.47,12.68068874]
[1771377222106,0.08339397,84.493,84.47,20.60728032]
[1771377222819,0.08339397,84.493,84.48,2.02028874]
[1771377223424,10.2743983,84.532,84.481,7.80733905]
[1771377223623,10.75416616,84.567,84.48,2.02028874]
[1771377223624,10.2743983,84.529,84.48,2.02028874]
[1771377223825,10.2743983,84.499,84.452,7.65242407]
[1771377224415,10.2743983,84.487,84.449,74.56]
[1771377224615,10.2743983,84.487,84.44,2.02028874]
[1771377225225,0.0788544,84.472,84.44,2.02028874]
[1771377225813,9.61199091,84.472,84.414,8.2902078]
[1771377226014,9.53313651,84.459,84.41,2.02028874]
[1771377226422,9.53313651,84.459,84.42,2.02028874]
[1771377226818,0.08397645,84.443,84.42,2.02028874]
[1771377227215,0.08397645,84.443,84.43,2.02028874]